{"text_format":"1","workbook":"xlsx","n_sheets":2,"sheets":["Pasiūlymas","Subtiekėjai ir priedai"],"not_rendered":{"charts":0,"images":0,"macros":1,"external_links":0,"defined_names":0,"comments":0,"pivot_tables":0},"unopened":[],"bounds":{"document_bytes":16777216,"sheet_cells":100000,"rows_first":2000,"rows_last":500,"rows_between":2000,"halvings":0,"cell_chars":16384,"cell_head_chars":4096},"cells_cut":0,"cells_raw":0,"read":"whole","date_system":"1900"}

{"sheet":"Pasiūlymas","index":0,"n_rows":81,"n_cols":7,"rows_kept":81,"cut":false,"hidden":false,"merged":[[11,0,11,1],[11,2,11,5],[12,0,12,1],[12,2,12,5],[13,0,13,1],[13,2,13,5],[14,0,14,1],[14,2,14,5],[15,0,15,1],[15,2,15,5],[16,0,16,1],[16,2,16,5],[17,0,17,1],[17,2,17,5],[18,0,18,1],[18,2,18,5],[23,0,23,5],[19,0,19,1],[20,0,20,1],[19,2,19,5],[20,2,20,5],[22,0,22,5],[27,0,27,5],[28,0,28,5],[24,0,24,5],[25,0,25,5],[26,0,26,5]]}
[]
["PIRKIMO SĄLYGŲ PRIEDAS \"PASIŪLYMŲ FORMA\""]
[]
["SUVENYRAI, APDOVANOJIMAI"]
[]
["Kam:","Šalčininkų rajono savivaldybės administracija"]
[]
["Data:","2021.03.02"]
["Nr.:"]
["Vieta:","Vilnius"]
[]
["Tiekėjo pavadinimas / Ūkio subjektų grupės nariai:",null,"UAB MYLIDA"]
["Tiekėjo kodas (-ai):",null,125765596]
["Tiekėjo adresas (-ai):",null,"Savanorių pr. 12, 03116 Vilnius, Lietuva"]
["Tiekėjo PVM mokėtojo kodas(-ai):",null,"LT257655917"]
["Tiekėjo / Ūkio subjektų grupės atsakingo partnerio sąskaitos numeris, banko pavadinimas ir banko kodas (-ai):",null,"LUMINOR BANK LT304010049500916557"]
["Asmens atsakingo už pasiūlymą vardas, pavardė:",null,"Prekybos direktorė Katažyna Rakovska"]
["Asmens atsakingo už pasiūlymą telefono numeris, el. pašto adresas:",null," 852130962 info@mylida.lt"]
["Tiekėjo / Ūkio subjektų grupės, laimėjimo atveju, pasirašančio sutartį asmens vardas, pavardė, pareigos:",null,"L.e.p. Direktorius Marian Tareilis"]
["Tiekėjo / Ūkio subjektų grupės, laimėjimo atveju, už sutarties vykdymą atsakingo asmens vardas, pavardė, telefono numeris, elektroninio pašto adresas:",null,"Prekybos direktorė Katažyna Rakovska 860574107 katazyna@mylida.lt"]
["(1) Tiekėjo / Ūkio subjektų grupės narių, (2) ūkio subjektų, kurių pajėgumais remiamasi, ir (3) jei pašalinimo pagrindai taikomi visiems subtiekėjams - subtiekėjų, kolegialaus priežiūros organo (Stebėtojų tarybos) ir (ar) kolegialaus valdymo organo (Valdybos) narių sąrašas (jei sudaryta) ir (ar) asmuo, kuriam suteikti VPĮ 46 str. 2 d. 2 p. numatyti įgaliojimai",null,"L.e.p. Direktorius Marian Tareilis"]
[]
["Tiekėjo patvirtinimai:"]
["1. Šiuo pasiūlymu pažymime, kad sutinkame su visomi pirkimo sąlygomis, nustatytomis:"]
["1.1. viešojo pirkimo dokumentuose"]
["1.2. kituose pirkimo dokumentuose (jų paaiškinimuose, papildymuose)."]
["2. Patvirtiname, kad informacija ir duomenys, pateikti pasiūlyme, yra teisingi ir apima viską, ko reikia tinkamam sutarties įvykdymui"]
["3. Patvirtiname, kad jei pasiūlyme nenurodyti kolegialaus priežiūros/valdymo organų nariai, šie organai juridiniuose asmenyse nėra sudaryti (taikoma, kai pirkimo dokumentuose nustatyti pašalinimo pagrindai)."]
["4. Pasiūlymas galioja iki termino, nustatyto pirkimo dokumentuose."]
[]
[]
["Tiekėjo pasiūlymas:"]
["Nr.","Pavadinimas","Kiekis","Mato vienetas","Kaina be PVM, Eur","Suma be PVM, Eur"]
["1.1.","Antspaudo užrašo gamyba (užsakymai vienetiniai, pagal poreikį)"]
["1.1.1.","24x7",1,"vnt.",4.3099999999999996,{"$f":"IF(ISBLANK(E35),\"\", PRODUCT(C35,E35))","v":4.3099999999999996}]
["1.1.2.","36x12",1,"vnt.",5.5,{"$f":"IF(ISBLANK(E36),\"\", PRODUCT(C36,E36))","v":5.5}]
["1.1.3.","45x17",1,"vnt.",6.46,{"$f":"IF(ISBLANK(E37),\"\", PRODUCT(C37,E37))","v":6.46}]
["1.1.4.","d. 30 mm",1,"vnt.",6.46,{"$f":"IF(ISBLANK(E38),\"\", PRODUCT(C38,E38))","v":6.46}]
["1.1.5.","d. 40 mm",1,"vnt.",7.8,{"$f":"IF(ISBLANK(E39),\"\", PRODUCT(C39,E39))","v":7.8}]
["1.1.","Antspaudo gamyba su korpusu (užsakymai vienetiniai pagal poreikį)"]
["1.1.1.","24x7",1,"vnt.",8.85,{"$f":"IF(ISBLANK(E41),\"\", PRODUCT(C41,E41))","v":8.85}]
["1.1.2.","36x12",1,"vnt.",9.33,{"$f":"IF(ISBLANK(E42),\"\", PRODUCT(C42,E42))","v":9.33}]
["1.1.3.","45x17",1,"vnt.",11.73,{"$f":"IF(ISBLANK(E43),\"\", PRODUCT(C43,E43))","v":11.73}]
["1.1.4.","d.30mm",1,"vnt.",14.84,{"$f":"IF(ISBLANK(E44),\"\", PRODUCT(C44,E44))","v":14.84}]
["1.1.5.","d.40 mm",1,"vnt.",18.43,{"$f":"IF(ISBLANK(E45),\"\", PRODUCT(C45,E45))","v":18.43}]
["1.1.","Informacinių kortelių gamyba(užsakoma pagal poreikį, min. užsakymo kiekis 100 vnt.)"]
["1.1.1.","Skaitmenine spauda ,4+O, popierius 280 gr. 100vnt",1,"vnt.",0.12,{"$f":"IF(ISBLANK(E47),\"\", PRODUCT(C47,E47))","v":0.12}]
["1.1.2.","Skaitmenine spauda,4+4,popierius 280gr. 100 vnt",1,"vnt.",0.17,{"$f":"IF(ISBLANK(E48),\"\", PRODUCT(C48,E48))","v":0.17}]
["1.1.3.","Šilkografine spauda 1+O 100 vnt",1,"vnt.",0.17,{"$f":"IF(ISBLANK(E49),\"\", PRODUCT(C49,E49))","v":0.17}]
["1.1.4.","Šilkografija  spauda 1+1 100 vnt",1,"lapas",0.19,{"$f":"IF(ISBLANK(E50),\"\", PRODUCT(C50,E50))","v":0.19}]
["1.1.5.","šilkografine spauda 4+0 100vnt",1,"vnt.",0.35,{"$f":"IF(ISBLANK(E51),\"\", PRODUCT(C51,E51))","v":0.35}]
["1.4.","Blankų, pažymų spauda ( popierius 80 gr.cm)"]
["1.4.1.","1000vnt,1+0",1,"vnt.",0.04,{"$f":"IF(ISBLANK(E53),\"\", PRODUCT(C53,E53))","v":0.04}]
["1.4.2.","2000 vnt,1+0",1,"vnt.",0.03,{"$f":"IF(ISBLANK(E54),\"\", PRODUCT(C54,E54))","v":0.03}]
["1.4.3.","1000 vnt,1+1",1,"vnt.",0.05,{"$f":"IF(ISBLANK(E55),\"\", PRODUCT(C55,E55))","v":0.05}]
["1.4.4.","2000 vnt,1+1",1,"vnt.",0.04,{"$f":"IF(ISBLANK(E56),\"\", PRODUCT(C56,E56))","v":0.04}]
["1.5.","Laminavimas, ( užsakymai vienetiniai pagal poreikį)"]
["1.5.1.","iDarbuotojų pažymėjimus",1,"vnt.",0.24,{"$f":"IF(ISBLANK(E58),\"\", PRODUCT(C58,E58))","v":0.24}]
["1.5.2.","A4 formato",1,"vnt.",0.49,{"$f":"IF(ISBLANK(E59),\"\", PRODUCT(C59,E59))","v":0.49}]
["1.5.3.","A3 formatas",1,"vnt.",0.98,{"$f":"IF(ISBLANK(E60),\"\", PRODUCT(C60,E60))","v":0.98}]
["1.5.4.","Didelių formatų laminavimas, kaina už 1 m2",1,"vnt.",7.36,{"$f":"IF(ISBLANK(E61),\"\", PRODUCT(C61,E61))","v":7.36}]
["1.6.","Aplankai"]
["1.6.1.","Aplankai ( popierius 300gcm, spauda 1+0,su  užlenkimais) 1000 vnt",1,"vnt.",0.43,{"$f":"IF(ISBLANK(E63),\"\", PRODUCT(C63,E63))","v":0.43}]
["1.6.2.","Aplankai ( popierius 300gcm, spauda 4+0,su  užlenkimais) 1000 vnt",1,"vnt.",1.3,{"$f":"IF(ISBLANK(E64),\"\", PRODUCT(C64,E64))","v":1.3}]
["1.7.","Sieniiniai kalendoriai 3- jų dalių"]
["1.7.1.","Sieniniai kalendoriai, 3-jų dalių,viršelis laminuotas,    lapeliai 2+0 90 gcm popierius 300 vnt",1,"vnt.",3.84,{"$f":"IF(ISBLANK(E66),\"\", PRODUCT(C66,E66))","v":3.84}]
["1.8.","Užrašai ant bloknotų, darbo knygu 1+0"]
["1.8.1.","Užrašai ant bloknotų, darbo knygu 1+0 100 vnt",1,"vnt.",0.3,{"$f":"IF(ISBLANK(E68),\"\", PRODUCT(C68,E68))","v":0.3}]
["1.9.","Balti puodeliai su užrašų,"]
["1.9.1.","talpa 300ml,spaudos dydis 35x35 m,spauda 1+0  50vnt",1,"vnt.",3.47,{"$f":"IF(ISBLANK(E70),\"\", PRODUCT(C70,E70))","v":3.47}]
["1.10.","Užrašai ant tušinukų"]
["1.10.1.","Plastikiniai tušinukai su spauda 1+0 300 vnt",1,"vnt.",0.36,{"$f":"IF(ISBLANK(E72),\"\", PRODUCT(C72,E72))","v":0.36}]
["1.11.","Įdeklai  į atvirutės"]
["1.11.1.","Įdeklai į atvirutės ( 180x90mm, kalkinis popierius)",1,"vnt.",0.21,{"$f":"IF(ISBLANK(E74),\"\", PRODUCT(C74,E74))","v":0.21}]
["1.12.","Padėkos raštai"]
["1.12.1.","Popierius 300 gcm, skaitmena 100 vnt",1,"vnt.",0.85,{"$f":"IF(ISBLANK(E76),\"\", PRODUCT(C76,E76))","v":0.85}]
["1.13.","Graviravimas ant įvairių paviršių"]
["1.13.1.","Graviravimas, užsakymai vienetiniai pagal poreikį,kaina už 1 cm2",1,"vnt.",1,{"$f":"IF(ISBLANK(E78),\"\", PRODUCT(C78,E78))","v":1}]
[null,null,null,null,"Suma be PVM",{"$f":"IF((SUMPRODUCT(--(F35:F78=\"\"))>13), \"\", SUM(F35:F78))","v":115.7},{"$f":"IF((SUMPRODUCT(--(F35:F78=\"\"))>13), \"Neužpildytos visų objektų kainos\", \"\")","v":""}]
[null,null,null,null,"PVM suma",24.3]
[null,null,null,null,"Suma su PVM",{"$f":"IF(ISBLANK(F80), \"\", SUM(F79:F80))","v":140}]

{"sheet":"Subtiekėjai ir priedai","index":1,"n_rows":100,"n_cols":11,"rows_kept":100,"cut":false,"hidden":false,"merged":[[47,0,47,9],[52,4,52,9],[50,4,50,9],[52,0,52,3],[50,0,50,3],[38,1,38,6],[37,1,37,6],[36,1,36,6],[35,1,35,6],[43,1,43,6],[42,1,42,6],[41,1,41,6],[40,1,40,6],[39,1,39,6],[32,0,32,9],[34,7,34,9],[34,1,34,6],[45,7,45,9],[42,7,42,9],[37,7,37,9],[36,7,36,9],[35,7,35,9],[44,7,44,9],[43,7,43,9],[41,7,41,9],[40,7,40,9],[39,7,39,9],[38,7,38,9],[45,1,45,6],[44,1,44,6],[1,0,2,10],[30,0,30,9],[14,5,14,7],[8,5,8,7],[7,5,7,7],[6,5,6,7],[14,8,14,9],[8,8,8,9],[7,8,7,9],[6,8,6,9],[14,0,14,1],[8,0,8,1],[7,0,7,1],[6,0,6,1],[14,2,14,4],[8,2,8,4],[7,2,7,4],[9,8,9,9],[6,2,6,4],[5,2,5,4],[5,8,5,9],[4,8,4,9],[4,5,4,7],[4,2,4,4],[4,0,4,1],[5,5,5,7],[5,0,5,1],[9,0,9,1],[13,2,13,4],[12,2,12,4],[11,2,11,4],[10,2,10,4],[9,2,9,4],[13,5,13,7],[12,5,12,7],[11,5,11,7],[10,5,10,7],[9,5,9,7],[16,0,16,10],[18,8,18,9],[18,5,18,7],[18,2,18,4],[18,0,18,1],[13,0,13,1],[12,0,12,1],[11,0,11,1],[10,0,10,1],[13,8,13,9],[12,8,12,9],[11,8,11,9],[10,8,10,9],[23,8,23,9],[22,8,22,9],[21,8,21,9],[20,8,20,9],[19,8,19,9],[28,8,28,9],[27,8,27,9],[26,8,26,9],[25,8,25,9],[24,8,24,9],[23,5,23,7],[22,5,22,7],[21,5,21,7],[20,5,20,7],[19,5,19,7],[28,5,28,7],[27,5,27,7],[26,5,26,7],[25,5,25,7],[24,5,24,7],[23,2,23,4],[22,2,22,4],[21,2,21,4],[20,2,20,4],[19,2,19,4],[28,2,28,4],[27,2,27,4],[26,2,26,4],[25,2,25,4],[24,2,24,4],[23,0,23,1],[22,0,22,1],[21,0,21,1],[20,0,20,1],[19,0,19,1],[28,0,28,1],[27,0,27,1],[26,0,26,1],[25,0,25,1],[24,0,24,1]]}
[]
["Ūkio subjektai (įskaitant kvazisubtiekėjus - fiziniai asmenys, kuriuos ketinama įdarbinti pirkimo laimėjimo atveju), kurių pajėgumais tiekėjas remiasi, kad atitiktų keliamus kvalifikacijos reikalavimus:"]
[]
[]
["Pavadinimas*",null,"Kodas, adresas",null,null,"Perduodama veikla",null,null,"Perduodamos veiklos dalis nuo visos pirkimo sutarties (Eur arba %)",null,"Kval. Reikalavimo Nr."]
[]
[]
[]
[]
[]
[]
[]
[]
[]
[]
[]
["Subtiekėjams / subteikėjams / subrangovams numatomos perduoti veiklos (privaloma nurodyti) ir šių ūkio subjektų pavadinimai (jei žinomi):"]
[]
["Pavadinimas",null,"Kodas, adresas",null,null,"Perduodama veikla*",null,null,"Perduodamos veiklos dalis nuo visos pirkimo sutarties (Eur arba %)"]
[]
[]
[]
[]
[]
[]
[]
[]
[]
[]
[]
["* Pildyti tuomet, jei pirkimo sutarties vykdymui bus pasitelkti subtiekėjai. Jeigu tiekėjas nenurodo subtiekėjų, laikoma, kad vykdant pirkimo sutartį jų nebus pasitelkiama."]
[]
["Kartu su pasiūlymu pateikiami šie dokumentai:"]
[]
["Nr.","Dokumento  pavadinimas",null,null,null,null,null,"Dokumentas yra konfidencialus? Taip/Ne"]
[1,"Jungtinės veiklos sutarties kopija (jei taikoma)"]
[2,"Subtiekimo sutartis, ketinimų protokolas, preliminarios sutartys ar kiti dokumentai, patvirtinantys, kad laimėjus pirkimą tiekėjui bus prieinami kitų ūkio subjektų ištekliai (jei pasitelkiami kvalifikacijos atitikimui)"]
[]
[]
[]
[]
[]
[]
[]
[]
[]
[]
["Pasiūlyme nurodyta Prekės kaina, išskyrus jos sudedamąsias dalis, subtiekėjai, taip pat kita informacija, kuri teisės aktų nustatyta tvarka turi būti skelbiama arba kitokiu būdu viešai prieinama visuomenei, nėra laikoma konfidencialia informacija. Konfidencialią informaciją sudaro, visų pirma, komercinė (gamybinė) paslaptis ir konfidencialieji pasiūlymų aspektai. Informacija, kurią viešai skelbti įpareigoja Lietuvos Respublikos įstatymai, negali būti tiekėjo nurodoma kaip konfidenciali, todėl, tiekėjui nurodžius tokią informaciją kaip konfidencialią, perkančioji organizacija turi teisę ją skelbti. Jei tiekėjas nenurodo konfidencialios informacijos, laikoma, kad konfidencialios informacijos tiekėjo pasiūlyme nėra. Vadovaujantis Informacijos viešinimo Centrinėje viešųjų pirkimų informacinėje sistemoje tvarkos aprašu, patvirtintu Viešųjų pirkimų tarnybos direktoriaus 2017 m. birželio 19 d. įsakymu Nr. 1S-91 „Dėl Informacijos viešinimo Centrinėje viešųjų pirkimų informacinėje sistemoje tvarkos aprašo patvirtinimo“, perkančioji organizacija laimėjusio dalyvio pasiūlymą, išskyrus informaciją, kurią tiekėjas nurodė kaip konfidencialią, paskelbs CVP IS."]
[]
[]
["Tiekėjo arba jo įgalioto asmens pareigų pavadinimas:"]
[]
["Pasirašančio asmens vardas ir pavardė:"]
[]
[]
[]
[]
[]
[]
[]
[]
[]
[]
[]
[]
[]
[]
[]
[]
[]
[]
[]
[]
[]
[]
[]
[]
[]
[]
[]
[]
[]
[]
[]
[]
[]
[]
[]
[]
[]
[]
[]
[]
[]
[]
[]
[]
[]
[]
["4522 2021-03-02 13:38:51"]